Cogmind - Beta 10.2 --- EXPLORER MODE // 2021.12.14 @ 15:07:23 Player: Alrafir Result: Destroyed by B-75 Beast with Magnetic Acceleration Cannon Performance ------------- Evolutions (2) 1000 Regions Visited (5) 1000 Robots Destroyed (114) 570 Value Destroyed (3543) 3543 Prototype IDs (12) 240 Alien Tech Used (0) 0 Bonus (935) 935 TOTAL SCORE: 7288 Bonus ------- High Alert Combat Kills 235 Entered Garrisons 200 Used RIF Installer 500 Cogmind --------- Core Integrity 0/550 Matter 197/300 Energy 100/100 System Corruption 0% Temperature Cool (0) Movement Core (300) Ox5 Location -8/Garrison Parts ------- > --- POWER (2) -------- (None) > --- PROPULSION (4) --- (None) > --- UTILITY (4) ------ Large Storage Unit > --- WEAPON (2) ------- Katana > --- INVENTORY (10) --- Hacking Suite Relay Coupler [Swarmer] (49) Relay Coupler [Hunter] (19) System Backup Module Peak State ------------ > --- POWER ------------ Light Nuclear Core Light Nuclear Core > --- PROPULSION ------- Light Treads Armored Treads Armored Treads Armored Treads > --- UTILITY ---------- Large Storage Unit High-capacity Matter Pod Recoil Stabilizer Recalibrator > --- WEAPON ----------- Gauss Rifle Gauss Rifle > --- INVENTORY -------- Improved Ion Engine Improved Heat Sink Hacking Suite Relay Coupler [Swarmer] Relay Coupler [Hunter] System Backup Module System Backup Module Heavy Particle Cannon Rocket Launcher Katana [Rating: 36] Favorites ----------- Power Light Ion Engine Engine Light Ion Engine Power Core Light Nuclear Core Propulsion Aluminum Leg Treads Armored Treads Leg Aluminum Leg Wheel Armored Wheel Flight Unit Flight Unit Utility Large Storage Unit Device Improved Terrain Scanner Storage Large Storage Unit Processor Seismic Analyzer Hackware System Shield Protection Medium Armor Plating Weapon Light Cannon Energy Gun Medium Laser Energy Cannon Advanced Beam Cannon Ballistic Gun Light Assault Rifle Ballistic Cannon Light Cannon Launcher Rocket Launcher Slashing Weapon Katana Build | -11 -10 -10 -9 -8 -8 ------- Run | Scr Mat Min Mat Mat Gar Slots Evolved 5 | . 1 . 2 2 . Power 1 | . . . 1 . . Propulsion 2 | . . . . 2 . Utility 2 | . 1 . 1 . . Weapon . | . . . . . . Parts Attached 91 | 7 16 8 23 25 12 Power 19 | . 4 2 5 4 4 Engine 14 | . 4 2 5 1 2 Core 5 | . . . . 3 2 Reactor . | . . . . . . Propulsion 20 | 2 4 2 6 5 1 Treads 4 | . . . . 3 1 Leg 8 | 2 3 . 3 . . Wheel 7 | . 1 1 3 2 . Hover . | . . . . . . Flight 1 | . . 1 . . . Utility 21 | 3 4 2 7 4 1 Device 9 | 2 2 . 2 2 1 Storage 4 | . 2 . 1 1 . Processor 1 | . . 1 . . . Hackware 1 | . . . 1 . . Protection 6 | 1 . 1 3 1 . Artifact . | . . . . . . Weapon 31 | 2 4 2 5 12 6 Energy Gun 7 | 2 2 . 2 1 . Energy Cannon 4 | . . . 1 2 1 Ballistic Gun 9 | . 2 1 . 4 2 Ballistic Cannon 4 | . . 1 2 1 . Launcher 4 | . . . . 2 2 Special Weapon . | . . . . . . Impact Weapon . | . . . . . . Slashing Weapon 3 | . . . . 2 1 Piercing Weapon . | . . . . . . Special Melee Weapon . | . . . . . . Unidentified Prototypes . | . . . . . . Parts Lost 26 | . . 4 . 4 18 Power 5 | . . 1 . . 4 Propulsion 6 | . . 1 . . 5 Utility 9 | . . 2 . 3 4 Weapon 6 | . . . . 1 5 Highest Loss Streak 13 | . . 2 . 3 13 Average Slot Usage (%) 96 | . 97 97 99 98 87 Engine 10 | . 10 12 20 4 1 Core 3 | . . . . 11 12 Treads 5 | . . . . 10 24 Leg 10 | . 24 15 5 . . Wheel 8 | . . 6 14 22 3 Device 16 | . 25 15 16 9 14 Storage 10 | . 4 12 10 14 14 Processor 1 | . . 8 . . . Protection 4 | . 7 . 9 5 . Energy Gun 4 | . 14 2 2 2 . Energy Cannon 1 | . . . 6 3 . Ballistic Gun 8 | . 9 12 1 6 13 Ballistic Cannon 4 | . . 9 9 2 . Naked Turns . | . . . . . . Heaviest Build 45 | 8 25 28 44 45 45 Greatest Support 80 | 20 20 20 26 60 80 Greatest Overweight (x) 8 | . 2 2 2 2 8 Average Overweight (x) . | . . 1 1 . . Largest Inventory Capacity 10 | 4 10 10 10 10 10 Average Capacity 9 | 4 6 10 10 10 10 Most Carried 10 | 4 7 8 10 10 10 Average Carried 6 | 2 3 6 8 8 8 Final Capacity 10 | 4 10 10 10 10 10 Final Carried 9 | 2 5 8 8 9 4 Class Distribution -------------------- 85% | Hacker-Mutant 14% | Scavenger-Mutant Dominant Class ---------------- Hacker-Mutant | -10/Materials Hacker-Mutant | -10/Mines Hacker-Mutant | -9/Materials Hacker-Mutant | -8/Materials Hacker-Mutant | -8/Garrison Resources | -11 -10 -10 -9 -8 -8 ----------- Run | Scr Mat Min Mat Mat Gar Matter Collected 2335 | 270 179 236 735 408 507 Remotely . | . . . . . . Salvage Created 4103 | 46 621 198 1330 1019 889 Parts 193 | 2 26 8 61 51 45 Haulers Intercepted 2 | . . . 1 1 . Recyclers Shooed . | . . . . . . Parts Field Recycled . | . . . . . . Retrieved Matter . | . . . . . . Parts Self-Destructed . | . . . . . . Prevented . | . . . . . . Kills | -11 -10 -10 -9 -8 -8 ------- Run | Scr Mat Min Mat Mat Gar Combat Hostiles Destroyed 109 | 1 13 16 29 24 26 Melee 4 | . . . . 4 . Guns 65 | 1 13 10 7 8 26 Cannons 38 | . . 6 22 10 . AOE 2 | . . . . 2 . Classes Destroyed 13 | 1 3 2 3 2 2 Worker 2 | . . . 1 1 . Hauler 2 | . . . 1 1 . Recycler 2 | . 1 . 1 . . Operator 1 | . . . . 1 . Watcher 8 | . 3 . 5 . . Swarmer 30 | . 4 4 3 6 13 Grunt 48 | 1 9 . 20 10 8 Brawler 1 | . . . . . 1 Duelist 2 | . . . . 2 . Sentry 15 | . . . 6 6 3 Demolisher 2 | . . 2 . . . Behemoth 1 | . . . . . 1 Assembled 10 | . . 10 . . . Best Kill Streak 9 | 1 3 5 9 5 5 Combat Bots Only 5 | 1 3 5 4 5 5 Max Kills in Single Turn 2 | 1 1 1 2 2 2 Gunslinging 1 | . . . . . 1 Exploded 1 | . . . . 1 . Melee 1 | . . . . 1 . Uniques/NPCs Destroyed . | . . . . . . Combat | -11 -10 -10 -9 -8 -8 -------- Run | Scr Mat Min Mat Mat Gar Damage Taken 4649 | 27 266 498 645 881 2332 Core 725 | 7 49 39 64 92 474 Absorbed by Shields . | . . . . . . Core Remaining (%) 81 | 97 . 62 84 . . Volleys Fired 301 | 5 53 32 72 65 74 Largest 2 | 1 2 2 2 2 2 Hottest 108 | 50 100 70 103 103 108 Shots Fired 552 | 5 89 64 144 116 134 Gun 366 | 5 89 45 36 69 122 Cannon 176 | . . 19 108 45 4 Launcher 10 | . . . . 2 8 Special . | . . . . . . Kinetic 357 | . 21 51 89 74 122 Thermal 185 | 5 68 13 55 40 4 Explosive 10 | . . . . 2 8 Electromagnetic . | . . . . . . Robot Hit Streak 49 | 3 33 21 27 49 40 Robot Miss Streak 2 | 1 1 1 2 1 2 Penetration Max 1 | . . . . . 1 Secondary Targets 12 | . . 2 . 3 7 Max Gunslinging Chain 1 | . . 1 . 1 1 Shots Hit Robots 479 | 4 72 54 113 119 117 Core Hits 189 | 2 30 27 45 44 41 Critical Hits 18 | . . 1 9 4 4 Critical Kills 5 | . . . 3 2 . Critical Parts Destroyed 11 | . . 1 5 2 3 Melee Attacks 24 | . . . . 15 9 Impact . | . . . . . . Slashing 24 | . . . . 15 9 Piercing . | . . . . . . Sneak Attacks . | . . . . . . Combat Hostiles . | . . . . . . Follow-up Attacks 1 | . . . . 1 . Damage Inflicted 8878 | 50 776 697 1979 2557 2819 Guns 4615 | 50 776 439 407 964 1979 Cannons 2877 | . . 258 1572 939 108 Explosions 609 | . . . . 177 432 Melee 777 | . . . . 477 300 Ramming . | . . . . . . Kinetic 4740 | . 136 550 995 1080 1979 Thermal 2752 | 50 640 147 984 823 108 Explosive 609 | . . . . 177 432 Electromagnetic . | . . . . . . Impact . | . . . . . . Slashing 777 | . . . . 477 300 Piercing . | . . . . . . Highest Corruption . | . . . . . . Average Corruption . | . . . . . . Corruption Purged . | . . . . . . Overload Shots . | . . . . . . Overflow Damage 87 | . . 11 34 20 22 Projectiles 45 | . . 11 34 . . Explosions 20 | . . . . 20 . Melee 22 | . . . . . 22 Knockbacks 16 | . . 3 7 6 . Impact . | . . . . . . Kinetic 16 | . . 3 7 6 . Secondary . | . . . . . . Self-Inflicted Damage 33 | . . . . . 33 Shots 3 | . . . . . 3 Rammed . | . . . . . . Targets Rammed . | . . . . . . Kicked . | . . . . . . Crushed . | . . . . . . Highest Temperature 186 | 12 132 58 153 186 117 Average Temperature 38 | 8 31 20 33 61 36 Received Heat Transfer 2127 | 24 228 180 360 567 768 Siege Activations . | . . . . . . Robots Corrupted . | . . . . . . Combat Hostiles . | . . . . . . Parts Fried . | . . . . . . Impact Corruptions . | . . . . . . Robots Melted . | . . . . . . Combat Hostiles . | . . . . . . Parts Melted 11 | 1 5 1 3 1 . Heat Transferred 5959 | 148 1852 444 1961 1406 148 Parts Sabotaged . | . . . . . . Parts Stolen . | . . . . . . Parts Stripped . | . . . . . . Power Chain Reactions . | . . . . . . Missiles Intercepted . | . . . . . . Alert | -11 -10 -10 -9 -8 -8 ------- Run | Scr Mat Min Mat Mat Gar Peak Influence 866 | 20 218 145 309 479 866 Initial 236 | . 9 . . 47 236 Average 179 | 4 72 17 103 273 589 Maximum Alert Level 3 | . 1 . 1 2 3 Low Security (%) 70 | 100 95 100 84 35 . Level 1 16 | . 4 . 15 54 32 Level 2 5 | . . . . 10 23 Level 3 7 | . . . . . 44 Level 4 . | . . . . . . Level 5 . | . . . . . . High Security . | . . . . . . Max Security . | . . . . . . Squads Dispatched 12 | . 2 . 5 5 . Investigation 8 | . 2 . 5 1 . Extermination . | . . . . . . Reinforcement 1 | . . . . 1 . Assault . | . . . . . . Garrison 3 | . . . . 3 . Intercept . | . . . . . . Construction Impeded . | . . . . . . Haulers Reinforced . | . . . . . . Stealth | -11 -10 -10 -9 -8 -8 --------- Run | Scr Mat Min Mat Mat Gar Distress Signals 4 | . 2 . 1 1 . Communications Jammed . | . . . . . . Distress Signals . | . . . . . . Times Spotted 146 | 1 21 21 36 37 30 Peak Tracking Total 9 | 1 3 9 6 7 6 Tactical Retreats 7 | . . 1 1 2 3 Traps | -11 -10 -10 -9 -8 -8 ------- Run | Scr Mat Min Mat Mat Gar Traps Triggered 5 | . 2 . 2 . 1 Indirectly . | . . . . . . Trap Hack Attempts . | . . . . . . Triggered . | . . . . . . Disarmed . | . . . . . . Reprogrammed . | . . . . . . Reused . | . . . . . . Traps Extracted . | . . . . . . Installed . | . . . . . . Triggered . | . . . . . . Machines | -11 -10 -10 -9 -8 -8 ---------- Run | Scr Mat Min Mat Mat Gar Machines Disabled 1 | . . . . . 1 Max in Single Turn 1 | . . . . . 1 Garrison Relay 1 | . . . . . 1 Machines Sabotaged . | . . . . . . Garrisons Compromised . | . . . . . . Overloaded Fab Kills . | . . . . . . Fab Network Shutdowns . | . . . . . . Hacking | -11 -10 -10 -9 -8 -8 --------- Run | Scr Mat Min Mat Mat Gar Machines Accessed 27 | . 11 . 13 3 . Terminals 17 | . 8 . 9 . . Fabricators . | . . . . . . Repair Stations 2 | . 1 . 1 . . Recycling Units 5 | . 2 . 2 1 . Scanalyzers 2 | . . . 1 1 . Garrison Access 1 | . . . . 1 . Total Hacks 109 | . 29 . 62 18 . Successful 80 | . 23 . 42 15 . Failed 29 | . 6 . 20 3 . Catastrophic 2 | . . . 2 . . Database Lockouts . | . . . . . . Manual 12 | . . . 12 . . Terminals 71 | . 20 . 51 . . Fabricators . | . . . . . . Repair Stations 6 | . 2 . 4 . . Recycling Units 12 | . 7 . 4 1 . Scanalyzers 15 | . . . 3 12 . Garrison Access 5 | . . . . 5 . Terminal Hacks 47 | . 14 . 33 . . Record 15 | . 3 . 12 . . Part Schematic 2 | . . . 2 . . Robot Analysis 3 | . 3 . . . . Prototype ID Bank 8 | . 3 . 5 . . Branch Access Points 2 | . 1 . 1 . . Emergency Access Points 1 | . . . 1 . . Machine Index 1 | . 1 . . . . Recycling Unit Index 1 | . . . 1 . . Alert Level 3 | . . . 3 . . Unreport Threat 1 | . . . 1 . . Locate Traps 3 | . 2 . 1 . . Dispatch Records 1 | . . . 1 . . Surveillance Status 1 | . . . 1 . . Hauler Manifests 1 | . . . 1 . . Registered Components 1 | . . . 1 . . Zone Layout 3 | . 1 . 2 . . Fabricator Hacks . | . . . . . . Repair Station Hacks 6 | . 2 . 4 . . Scan Component 3 | . 1 . 2 . . Repair 3 | . 1 . 2 . . Recycling Unit Hacks 12 | . 7 . 4 1 . Recycle Component 2 | . 2 . . . . Process 2 | . 2 . . . . Report Inventory 5 | . 2 . 2 1 . Retrieve Matter 2 | . 1 . 1 . . Retrieve Components 1 | . . . 1 . . Scanalyzer 13 | . . . 1 12 . Insert Component 6 | . . . 1 5 . Analyze 7 | . . . . 7 . Garrison Access Hacks 2 | . . . . 2 . Unlock Access 1 | . . . . 1 . Coupler Status 1 | . . . . 1 . Unauthorized Hacks . | . . . . . . Terminals . | . . . . . . Fabricators . | . . . . . . Repair Stations . | . . . . . . Recycling Units . | . . . . . . Scanalyzers . | . . . . . . Garrison Access . | . . . . . . Data Cores Recovered . | . . . . . . Used . | . . . . . . Hacking Detections 22 | . 9 . 12 1 . Full Trace Events 16 | . 5 . 10 1 . Feedback Events . | . . . . . . Feedback Blocked . | . . . . . . Robot Schematics Acquired . | . . . . . . Robots Built . | . . . . . . Matter . | . . . . . . Time . | . . . . . . Total Robot Build Rating . | . . . . . . Part Schematics Acquired 7 | . . . 2 5 . Parts Built . | . . . . . . Matter . | . . . . . . Time . | . . . . . . Total Part Build Rating . | . . . . . . Parts Repaired 3 | . 1 . 2 . . Time 96 | . 26 . 70 . . Parts Recycled 2 | . 2 . . . . Recycled Matter 210 | . 210 . . . . Retrieved Matter 230 | . 230 . . . . Retrieved Components 2 | . . . 2 . . Parts Scanalyzed 5 | . . . 1 4 . Part Schematics Acquired 5 | . . . . 5 . Parts Damaged . | . . . . . . Bothacking | -11 -10 -10 -9 -8 -8 ------------ Run | Scr Mat Min Mat Mat Gar Used RIF Installer 1 | . . . . . 1 Robots Hacked . | . . . . . . Non-combat . | . . . . . . Combat . | . . . . . . Robot Hacks Applied . | . . . . . . Relay Couplers Released 4 | . . . . . 4 Machine Destruction 4 | . . . . . 4 Robots Rewired . | . . . . . . Allies Hacked . | . . . . . . Hacks Repelled . | . . . . . . Allies | -11 -10 -10 -9 -8 -8 -------- Run | Scr Mat Min Mat Mat Gar Total Allies 1 | . . 1 . . . Largest Group 1 | . . 1 . . . Highest-Rated Group 31 | . . 31 . . . Highest-Rated Ally 31 | . . 31 . . . Total Orders . | . . . . . . Ally Attacks . | . . . . . . Total Damage . | . . . . . . Kills . | . . . . . . Allies Corrupted . | . . . . . . Allies Melted . | . . . . . . Intel | -11 -10 -10 -9 -8 -8 ------- Run | Scr Mat Min Mat Mat Gar Robot Analysis Total 3 | . 3 . . . . Derelict Logs Recovered 1 | . . 1 . . . Drone Launches . | . . . . . . Drone Recoveries . | . . . . . . Exploration | -11 -10 -10 -9 -8 -8 ------------- Run | Scr Mat Min Mat Mat Gar Turns Passed 6002 | 112 1300 1367 1449 742 1032 Spaces Moved 3201 | 88 741 636 953 417 366 Core 52 | 29 . . . . 23 Treads 451 | . . . . 108 343 Legs 1257 | 59 741 326 131 . . Wheels 1441 | . . 310 822 309 . Hover . | . . . . . . Flight . | . . . . . . Fastest Speed 50 | 50 120 110 100 90 167 Average Speed 128 | 96 133 136 109 110 185 Slowest Speed 450 | 120 180 180 150 210 450 Overloaded Moves . | . . . . . . Propulsion Burnouts . | . . . . . . Robots Hopped . | . . . . . . Cave-ins Triggered . | . . . . . . Exploration Rate (%) 61 | 7 91 99 67 44 62 Regions Visited 5 Branch Regions 1 Pre-discovered Areas . | . . . . . . Known Exits Taken 5 | 1 1 1 1 1 . Unknown Exits Taken . | . . . . . . Scrap Searched . | . . . . . . Spaces Dug . | . . . . . . Terrain Destroyed 43 | . . . . 22 21 Melee . | . . . . . . Projectile 3 | . . . . 1 2 AOE 40 | . . . . 21 19 Terrain Rammed . | . . . . . . Walls Destroyed . | . . . . . . Machines Disabled . | . . . . . . Actions | -11 -10 -10 -9 -8 -8 --------- Run | Scr Mat Min Mat Mat Gar Total 4502 | 109 968 1072 1224 556 573 Wait 743 | . 134 379 129 3 98 Move 3197 | 87 740 635 952 417 366 Hop . | . . . . . . Pick Up 89 | 7 17 12 26 19 8 Fast Attach 7 | 3 . . 3 . 1 Attach 38 | 4 7 5 8 7 7 Detach 4 | 1 1 1 . 1 . Swap 46 | . 9 3 12 18 4 Drop 54 | 2 7 5 22 12 6 Fire 301 | 5 53 32 72 65 74 Melee 23 | . . . . 14 9 Ram . | . . . . . . Kick . | . . . . . . Crush . | . . . . . . Escape Stasis . | . . . . . . Rewire . | . . . . . . Trap . | . . . . . . Miscellaneous . | . . . . . . Route ------- -11/Scrapyard -10/Materials (discovered 4 exits: *Mat x3 / *Min) -10/Mines (discovered 2 exits: *Mat x2) -9/Materials (discovered 3 exits: *Mat x2 / *Min) -8/Materials (discovered 2 exits: *Fac / Gar) -8/Garrison (discovered 1 exit: *Fac) History --------- Turn | Location | Event 2 | -11/Scrapyard | Met Revision 17 75 | -11/Scrapyard | Identified exit to Materials 75 | -11/Scrapyard | Discovered exit to Materials (range 8) 113 | -11/Scrapyard | Entered Materials 113 | -10/Materials | Evolved 1 slot: Utility x1 301 | -10/Materials | Build established: Hacker-Mutant 382 | -10/Materials | Identified exit to Materials 382 | -10/Materials | Discovered exit to Materials (range 12) 602 | -10/Materials | Discovered exit to Materials (range 16) 683 | -10/Materials | Identified exit to Mines 811 | -10/Materials | Discovered exit to Materials (range 16) 918 | -10/Materials | Repaired Lgt. Armor Plating 951 | -10/Materials | Build established: Scavenger-Mutant 1413 | -10/Materials | Entered Mines 1449 | -10/Mines | Build established: Hacker-Mutant 1517 | -10/Mines | Discovered exit to Materials (range 9) 1679 | -10/Mines | Assembled infested the area 1684 | -10/Mines | Assisted by a Guerilla fighting off Assembled 2071 | -10/Mines | Learned 2 Materials zone layouts 2444 | -10/Mines | Received a Mining Laser from a helpful Derelict 2475 | -10/Mines | Discovered exit to Materials (range 14) 2780 | -10/Mines | Entered Materials 2780 | -9/Materials | Evolved 2 slots: Power x1, Utility x1 3010 | -9/Materials | Identified exit to Materials 3010 | -9/Materials | Discovered exit to Materials (range 15) 3348 | -9/Materials | Repaired Med. Armor Plating 3388 | -9/Materials | Repaired Imp. Heat Sink 3424 | -9/Materials | Identified exit to Mines 3458 | -9/Materials | Discovered exit to Materials (range 11) 4229 | -9/Materials | Entered another Materials area 4229 | -8/Materials | Evolved 2 slots: Propulsion x2 4386 | -8/Materials | Identified exit to Factory 4386 | -8/Materials | Discovered exit to Factory (range 10) 4412 | -8/Materials | Lost 3 parts (2u1w) 4744 | -8/Materials | Garrison activated, responded to threat 4971 | -8/Materials | Identified exit to Garrison 4971 | -8/Materials | Entered Garrison 4980 | -8/Garrison | Installed Relay Interface Framework 5010 | -8/Garrison | Triggered checkpoint 5208 | -8/Garrison | Triggered checkpoint 5284 | -8/Garrison | Triggered checkpoint 5492 | -8/Garrison | Triggered checkpoint 5546 | -8/Garrison | Triggered checkpoint 5614 | -8/Garrison | Triggered checkpoint 5671 | -8/Garrison | Garrison Relay disabled 5736 | -8/Garrison | Discovered exit to Factory (range 10) 5801 | -8/Garrison | Spotted B-75 Beast 5801 | -8/Garrison | Spotted B-75 Beast 5848 | -8/Garrison | Destroyed B-75 Beast 5873 | -8/Garrison | Core integrity fell below 50% 5909 | -8/Garrison | Lost 13 parts (2p4n3u4w) 5973 | -8/Garrison | Core integrity fell below 20% 6003 | -8/Garrison | Destroyed by B-75 Beast with Magnetic Acceleration Cannon Last Messages --------------- 05842_ Slug penetrates B-75 Beast. 05846_ Arm. Treads destroyed. 05846_ Lgt. Nuclear Core destroyed. 05848_ Hcp. Matter Pod destroyed. 05848_ Slug penetrates B-75 Beast. 05848_ B-75 Beast destroyed. 05855_ Slug penetrates B-75 Beast. 05859_ Gauss Rifle destroyed. 05863_ The unstable cave ceiling collapses. 05865_ Arm. Treads destroyed. 05872_ Rocket Launcher destroyed. 05878_ Hvy. Particle Cannon destroyed. 05878_ Knocked back. 05972_ Critical hit. 05972_ Imp. Ion Engine destroyed. 05983_ Imp. Heat Sink destroyed. 05988_ Destroyed Hvy. Plasma Cannon. 05993_ Knocked back. [Achievement: First Step to Greatness] [Achievement: 5k Club] Map ----- +----------------------------------------------------+ | ?????????????????????????????????????????????????? | | ?????????????????????????????????????????????????? | | ?????????????????????????????????????????????????? | | ?????????????????????????????????????????????????? | | ?????????????????????????????????????????????????? | | ?????????????????????????????????????????????????? | | ?????????????????????????????????????????????????? | | ?????????????????????????????????????????????????? | | ?????????????????????????????????????????????????? | | ?????????????????????????????????????????????????? | | ??????????????????????# ???????########????????? | | ??????????????????????# ??????##! #????????? | | ??????????????????????# ??????# ! #????????? | | ??????????????????????# ?????## #????????? | | ??????????????????????# ?????? * ##???????? | | ?????????????????????## ??????# [ #???????? | | ????????????????????? ??????# = #????????? | | ?????????????????????? #?????# ##???????? | | ??????????????????????# #?????# ! ????????? | | ??????????????????????# #??????# ?????###### | | ??????????????????????# #???????# #??????# ^ | | ??????????????????????# #???????# #??????# ^ | | ???????????############ ######### #??????# ### | | ??????????? BB #??????# #?? | | ??????????? BB #??????# #?? | | ??????????????????"""## @#########! "#?????# #?? | | ??????????????????????# #???????# ##?????# #?? | | ?????????????????????#; #???????# #??????# #?? | | ?????????????????????## #???????# #??????# #?? | | ??????????????????????#^ #???????# ######## #?? | | ??????????????????????# #???????# ## %* ## #?? | | ??????????????????????#^ ######### ## = ## ##? | | ??????????????????????#^^ ## | | ??????????????????????# %=% " | | ????????????????????? *%% [## | | ?????????????????????############# [## ## #? | | ????????????????????????????# #### ## ## #? | | ????????????????????????????# " ! | | ????????????????????????????#### | | ???????????????????????????????#!%[ | | ???????????????????????????????# [% | | ???????????????????????????????###[ ## ## ## | | ?????????????????????????????????# ## ## #? | | ?????????????????????????????????# = #? | | ?????????????????????????????????#[% == #? | | ?????????????????????????????????#=*[ == [ #? | | ?????????????????????????????????# * ## = =## ##? | | ?????????????????????????????????#= ## [*## #?? | | ?????????????????????????????????# ######## #?? | | ?????????????????????????????????# #??????# #?? | +----------------------------------------------------+ Best States ------------- Heat Dissipation 45 Energy Generation 23 Energy Capacity 430 Matter Stores 500 Matter Capacity 500 Sight Range 16 Terrain Scan Range 16 Terrain Scan Density 60 Armor Coverage 225 Resistance: KI 35 Resistance: TH 35 Resistance: EX 35 Resistance: EM 35 Resistance: I 35 Resistance: S 35 Resistance: P 35 Evasion (%) 50 Recoil Reduction 6 Offensive Hacking 20 Defensive Hacking 10 Item Schematics ----------------- Welding Torch | -9/Materials | Hacked Imp. Aluminum Leg | -9/Materials | Hacked Katana | -8/Materials | Scanalyzed Rocket Launcher | -8/Materials | Scanalyzed Hcp. Matter Pod | -8/Materials | Scanalyzed Mining Laser | -8/Materials | Scanalyzed System Backup Module | -8/Materials | Scanalyzed Robot Schematics ------------------ None Fabricated ------------ Nothing Alien Tech Used ----------------- None Achievements -------------- 5k Club Armchair Analyst First Step to Greatness I Survived The Infestation Loot Pinata Maximum Efficiency Challenges ------------ None Game ------ Seed GaussOpticalProjector Manual? 0 Play Time 02:09:26 Cumulative 4.2 hours Start 2021.12.13 @ 20:09:57 End 2021.12.14 @ 15:07:23 Sessions 3 Manual Loads 0 Difficulty Explorer Special Mode None Game No. 2 Rogue 0 Adventurer 0 Explorer 2 Win Type - Total 0 Types 0/0/0/0/0/0/0/0/0 Lore% 3 Gallery% 5 Achievement% 7 Wizard Run 0 Options --------- ASCII 0 Keyboard 0 Movement Mouse Keybinds 0 Fullscreen 2 Font 24/Smallcaps Map View 76x50 Tactical HUD 1 Map Filters NONE Filters NONE Steam 1 RUN: 458b0692-522d-407c-b9dd-3244b3659f0d